[Event "NOR-ch Various 2019"]
[Site "Larvik"]
[Date "2019.07.07"]
[Round "2.31"]
[White "Abdrlauf, Elham"]
[Black "Brodtkorb, Lars Johan"]
[Result "1-0"]
[ECO "A46"]
[WhiteElo "2235"]
[BlackElo "2077"]
[Annotator "NA"]
[PlyCount "115"]
[EventDate "2019.07.06"]
[EventType "swiss"]
[EventCountry "NOR"]
[SourceTitle "playchess.com"]
[Source "ChessBase"]
[SourceQuality "1"]
[TimeControl "40/5400+30:1800+30"]

1. d4 {[%emt 0:00:00]} Nf6 {[%emt 0:00:00]} 2. Bf4 {[%emt 0:00:00]} c5 {[%emt 0:01:27]} 3. e3 {[%emt 0:02:16]} e6 {[%emt 0:01:20]} 4. Nf3 {[%emt 0:09:13]} Nc6 {[%emt 0:05:10]} 5. c4 {[%emt 0:05:20]} cxd4 {[%emt 0:07:52]} 6. exd4 {[%emt 0:00:38]} Bb4+ {[%emt 0:00:09]} 7. Nbd2 {[%emt 0:04:05]} O-O {[%emt 0:06:40]} 8. Bd3 {[%emt 0:10:32]} d5 {[%emt 0:04:33]} 9. O-O {[%emt 0:00:32]} Re8 {[%emt 0:03:13]} 10. Rc1 {[%emt 0:07:52]} Bf8 {[%emt 0:12:20]} 11. a3 {[%emt 0:06:52]} Nxd4 {[%emt 0:02:38]} 12. Nxd4 {[%emt 0:01:49]} e5 {[%emt 0:00:51]} 13. Bxe5 {[%emt 0:02:17]} Rxe5 {[%emt 0:00:11]} 14. N2f3 {[%emt 0:01:04]} Re8 {[%emt 0:01:50]} 15. Qb3 {[%emt 0:03:17]} a6 {[%emt 0:12:49]} 16. Rfd1 {[%emt 0:04:08]} Bg4 {[%emt 0:06:24]} 17. cxd5 {[%emt 0:02:11]} Qxd5 {[%emt 0:03:06]} 18. Bc4 {[%emt 0:05:25]} Qh5 {[%emt 0:00:06]} 19. h3 {[%emt 0:04:32]} Bxf3 {[%emt 0:00:13]} 20. Nxf3 {[%emt 0:03:14]} b5 {[%emt 0:01:07]} 21. Bd5 {[%emt 0:00:38]} Nxd5 {[%emt 0:04:42]} 22. Rxd5 {[%emt 0:01:04]} Qh6 {[%emt 0:02:41]} 23. Rc7 {[%emt 0:02:22]} Re7 {[%emt 0:00:13]} 24. Rxe7 {[%emt 0:07:14]} Bxe7 {[%emt 0:01:01]} 25. Rd7 {[%emt 0:01:50]} Re8 {[%emt 0:05:29]} 26. Qd5 {[%emt 0:01:18]} Qc1+ {[%emt 0:00:05]} 27. Kh2 {[%emt 0:00:14]} Qf4+ {[%emt 0:00:03]} 28. g3 {[%emt 0:01:03]} Qf6 {[%emt 0:00:03]} 29. Kg2 {[%emt 0:00:32]} Rd8 {[%emt 0:03:00]} 30. Ne5 {[%emt 0:03:07]} g6 {[%emt 0:00:08]} 31. Rxd8+ {[%emt 0:04:25]} Bxd8 {[%emt 0:00:15]} 32. Nxf7 {[%emt 0:04:35]} Be7 {[%emt 0:04:28]} 33. Nh6+ {[%emt 0:00:00]} Kg7 {[%emt 0:00:16]} 34. Ng8 {[%emt 0:00:30]} Qd6 {[%emt 0:00:49]} 35. Nxe7 {[%emt 0:00:17]} Qxe7 {[%emt 0:00:03]} 36. Qd4+ {[%emt 0:00:23]} Kf7 {[%emt 0:00:52]} 37. Kf3 {[%emt 0:00:41]} Qe6 {[%emt 0:01:31]} 38. h4 {[%emt 0:01:14]} h5 {[%emt 0:00:25]} 39. Qf4+ {[%emt 0:00:42]} Kg7 {[%emt 0:00:14]} 40. Qc7+ {[%emt 0:00:45]} Kf6 {[%emt 0:00:32]} 41. Qc3+ {[%emt 0:30:51]} Kf7 {[%emt 0:07:42]} 42. Qd4 {[%emt 0:03:57]} Qe1 {[%emt 0:00:00]} 43. Qa7+ {[%emt 0:00:00]} Kf8 {[%emt 0:00:00]} 44. Qxa6 {[%emt 0:00:00]} Qh1+ {[%emt 0:00:00]} 45. Ke3 {[%emt 0:00:00]} Qc1+ {[%emt 0:00:00]} 46. Ke4 {[%emt 0:00:00]} Qxb2 {[%emt 0:00:00]} 47. Qc8+ {[%emt 0:00:00]} Ke7 {[%emt 0:00:51]} 48. Qc7+ {[%emt 0:00:00]} Ke6 {[%emt 0:00:21]} 49. Qc6+ {[%emt 0:01:39]} Ke7 {[%emt 0:00:10]} 50. Qc5+ {[%emt 0:00:00]} Kf7 {[%emt 0:00:06]} 51. Qd5+ {[%emt 0:00:00]} Kf8 {[%emt 0:00:07]} 52. Qd6+ {[%emt 0:00:00]} Kf7 {[%emt 0:00:10]} 53. Qd5+ {[%emt 0:00:00]} Kf8 {[%emt 0:00:08]} 54. Qc5+ {[%emt 0:00:00]} Kf7 {[%emt 0:00:19]} 55. Kd5 {[%emt 0:00:00]} Qb3+ {[%emt 0:03:12]} 56. Kc6 {[%emt 0:00:00]} Qb2 {[%emt 0:00:06]} 57. Kd6 {[%emt 0:04:24]} Qd2+ {[%emt 0:03:22]} 58. Qd5+ {[%emt 0:00:00]} 1-0

[Event "NOR-ch Various 2019"]
[Site "Larvik"]
[Date "2019.07.07"]
[Round "2.32"]
[White "Holleland, Sigve"]
[Black "Moen, Ole Christian"]
[Result "0-1"]
[ECO "A80"]
[WhiteElo "2092"]
[BlackElo "2234"]
[Annotator "NA"]
[PlyCount "84"]
[EventDate "2019.07.06"]
[EventType "swiss"]
[EventCountry "NOR"]
[SourceTitle "playchess.com"]
[Source "ChessBase"]
[SourceQuality "1"]
[TimeControl "40/5400+30:1800+30"]

1. d4 {[%emt 0:00:00]} f5 {[%emt 0:00:00]} 2. Nc3 {[%emt 0:00:00]} Nf6 {[%emt 0:00:00]} 3. Bg5 {[%emt 0:00:00]} d5 {[%emt 0:00:00]} 4. e3 {[%emt 0:00:42]} e6 {[%emt 0:02:41]} 5. Nf3 {[%emt 0:00:53]} Be7 {[%emt 0:00:29]} 6. Bd3 {[%emt 0:03:18]} O-O {[%emt 0:01:29]} 7. O-O {[%emt 0:03:25]} c5 {[%emt 0:09:57]} 8. dxc5 {[%emt 0:04:09]} Nc6 {[%emt 0:01:19]} 9. Na4 {[%emt 0:00:47]} Ne4 {[%emt 0:03:30]} 10. Bxe7 {[%emt 0:01:47]} Qxe7 {[%emt 0:00:07]} 11. c4 {[%emt 0:03:27]} dxc4 {[%emt 0:08:56]} 12. Bxc4 {[%emt 0:09:12]} Nxc5 {[%emt 0:11:39]} 13. Nxc5 {[%emt 0:03:20]} Qxc5 {[%emt 0:00:06]} 14. Rc1 {[%emt 0:00:15]} Qe7 {[%emt 0:00:46]} 15. Nd4 {[%emt 0:04:26]} Nd8 {[%emt 0:04:49]} 16. Qc2 {[%emt 0:04:45]} Kh8 {[%emt 0:01:51]} 17. f4 {[%emt 0:05:48]} Bd7 {[%emt 0:03:07]} 18. e4 {[%emt 0:03:23]} Qc5 {[%emt 0:06:38]} 19. Qf2 {[%emt 0:00:42]} Rc8 {[%emt 0:02:30]} 20. exf5 {[%emt 0:03:50]} exf5 {[%emt 0:01:28]} 21. Nf3 {[%emt 0:01:33]} Qxf2+ {[%emt 0:03:58]} 22. Kxf2 {[%emt 0:00:06]} Be6 {[%emt 0:01:24]} 23. Bb5 {[%emt 0:01:57]} Rxc1 {[%emt 0:05:12]} 24. Rxc1 {[%emt 0:00:05]} Bxa2 {[%emt 0:00:26]} 25. Ra1 {[%emt 0:02:29]} Bd5 {[%emt 0:00:10]} 26. Rxa7 {[%emt 0:00:12]} Ne6 {[%emt 0:00:31]} 27. Ke3 {[%emt 0:08:25]} Nc7 {[%emt 0:00:23]} 28. Bd3 {[%emt 0:02:34]} Re8+ {[%emt 0:02:08]} 29. Kf2 {[%emt 0:00:21]} g6 {[%emt 0:01:47]} 30. Ra5 {[%emt 0:00:44]} Kg7 {[%emt 0:03:34]} 31. Ne5 {[%emt 0:04:35]} Kf6 {[%emt 0:03:24]} 32. b4 {[%emt 0:04:32]} Re7 {[%emt 0:00:32]} 33. Nc4 {[%emt 0:01:37]} Bxc4 {[%emt 0:02:50]} 34. Bxc4 {[%emt 0:00:02]} Re4 {[%emt 0:00:21]} 35. Rc5 {[%emt 0:02:34]} Rxf4+ {[%emt 0:00:43]} 36. Ke3 {[%emt 0:00:31]} Re4+ {[%emt 0:00:17]} 37. Kd3 {[%emt 0:02:42]} Ne8 {[%emt 0:10:27]} 38. Rb5 {[%emt 0:06:18]} Rxc4 {[%emt 0:02:25]} 39. Kxc4 {[%emt 0:00:02]} Nd6+ {[%emt 0:00:05]} 40. Kc5 {[%emt 0:00:08]} Nxb5 {[%emt 0:00:06]} 41. Kxb5 {[%emt 0:30:07]} f4 {[%emt 0:31:26]} 42. Kc4 {[%emt 0:00:00]} Ke5 {[%emt 0:00:00] Kd4+} 0-1

[Event "NOR-ch Various 2019"]
[Site "Larvik"]
[Date "2019.07.07"]
[Round "2.33"]
[White "Grover, Sigurd Loe"]
[Black "Demac, Elias"]
[Result "1-0"]
[ECO "B23"]
[WhiteElo "2052"]
[BlackElo "2215"]
[Annotator "NA"]
[PlyCount "65"]
[EventDate "2019.07.06"]
[EventType "swiss"]
[EventCountry "NOR"]
[SourceTitle "playchess.com"]
[Source "ChessBase"]
[SourceQuality "1"]
[TimeControl "40/5400+30:1800+30"]

1. e4 {[%emt 0:01:10]} c5 {[%emt 0:00:00]} 2. Nc3 {[%emt 0:00:06]} Nc6 {[%emt 0:00:00]} 3. f4 {[%emt 0:00:05]} e6 {[%emt 0:00:00]} 4. Nf3 {[%emt 0:00:05]} a6 {[%emt 0:00:10]} 5. g3 {[%emt 0:00:15]} d5 {[%emt 0:00:16]} 6. d3 {[%emt 0:00:05]} d4 {[%emt 0:02:38]} 7. Ne2 {[%emt 0:00:07]} Nf6 {[%emt 0:00:14]} 8. Bg2 {[%emt 0:00:08]} Be7 {[%emt 0:00:11]} 9. O-O {[%emt 0:00:06]} O-O {[%emt 0:00:10]} 10. h3 {[%emt 0:00:02]} b5 {[%emt 0:02:03]} 11. g4 {[%emt 0:00:17]} Ne8 {[%emt 0:12:54]} 12. f5 {[%emt 0:04:08]} exf5 {[%emt 0:01:11]} 13. gxf5 {[%emt 0:00:43]} Ra7 {[%emt 0:15:13]} 14. a4 {[%emt 0:06:07]} b4 {[%emt 0:07:41]} 15. b3 {[%emt 0:00:07]} Bd6 {[%emt 0:04:49]} 16. Kh1 {[%emt 0:01:48]} Ne5 {[%emt 0:06:47]} 17. Qe1 {[%emt 0:05:44]} Kh8 {[%emt 0:12:50]} 18. Nh2 {[%emt 0:01:04]} Rg8 {[%emt 0:04:14]} 19. Ng4 {[%emt 0:03:21]} Nxg4 {[%emt 0:02:47]} 20. hxg4 {[%emt 0:10:04]} g5 {[%emt 0:00:35]} 21. Ng1 {[%emt 0:06:00]} f6 {[%emt 0:06:46]} 22. Rf3 {[%emt 0:02:19]} h5 {[%emt 0:02:01]} 23. gxh5 {[%emt 0:08:47]} g4 {[%emt 0:00:14]} 24. Rf1 {[%emt 0:00:35]} Rh7 {[%emt 0:01:08]} 25. h6 {[%emt 0:04:09]} Be5 {[%emt 0:00:23]} 26. Ne2 {[%emt 0:01:17]} Nd6 {[%emt 0:01:25]} 27. Qh4 {[%emt 0:03:05]} Qf8 {[%emt 0:00:20]} 28. Kg1 {[%emt 0:00:13]} Nf7 {[%emt 0:01:11]} 29. Kf2 {[%emt 0:00:25]} Ng5 {[%emt 0:05:18]} 30. Rh1 {[%emt 0:02:14]} Qd6 {[%emt 0:00:43]} 31. Qxg4 {[%emt 0:02:14]} Bb7 {[%emt 0:01:16]} 32. Qh4 {[%emt 0:01:15]} a5 {[%emt 0:04:00]} 33. Nf4 {[%emt 0:00:59]} 1-0

[Event "NOR-ch Various 2019"]
[Site "Larvik"]
[Date "2019.07.07"]
[Round "2.34"]
[White "Aulin-Jansson, Joran"]
[Black "Holand, Per Fredrik"]
[Result "1/2-1/2"]
[ECO "A06"]
[WhiteElo "2223"]
[BlackElo "1861"]
[Annotator "NA"]
[PlyCount "67"]
[EventDate "2019.07.06"]
[EventType "swiss"]
[EventCountry "NOR"]
[SourceTitle "playchess.com"]
[Source "ChessBase"]
[SourceQuality "1"]
[TimeControl "40/5400+30:1800+30"]

1. b3 {[%emt 0:00:00]} d5 {[%emt 0:00:57]} 2. Bb2 {[%emt 0:02:07]} Nf6 {[%emt 0:00:18]} 3. Nf3 {[%emt 0:00:38]} e6 {[%emt 0:00:32]} 4. e3 {[%emt 0:00:09]} Be7 {[%emt 0:00:27]} 5. Be2 {[%emt 0:04:00]} O-O {[%emt 0:00:28]} 6. O-O {[%emt 0:00:30]} b6 {[%emt 0:00:55]} 7. Ne5 {[%emt 0:07:58]} Bb7 {[%emt 0:01:58]} 8. Bf3 {[%emt 0:01:20]} c5 {[%emt 0:06:52]} 9. c4 {[%emt 0:12:42]} Nc6 {[%emt 0:11:45]} 10. d4 {[%emt 0:25:40]} cxd4 {[%emt 0:01:34]} 11. Nxc6 {[%emt 0:02:51]} Bxc6 {[%emt 0:00:10]} 12. Bxd4 {[%emt 0:08:18]} Rc8 {[%emt 0:00:31]} 13. Nd2 {[%emt 0:01:39]} Qd6 {[%emt 0:29:46]} 14. cxd5 {[%emt 0:21:40]} Bxd5 {[%emt 0:00:25]} 15. Bxf6 {[%emt 0:01:36]} gxf6 {[%emt 0:00:07]} 16. Bxd5 {[%emt 0:00:05]} Qxd5 {[%emt 0:00:10]} 17. Nc4 {[%emt 0:00:49]} Rfd8 {[%emt 0:08:19]} 18. Qxd5 {[%emt 0:02:53]} Rxd5 {[%emt 0:06:05]} 19. a4 {[%emt 0:01:04]} Rd3 {[%emt 0:01:28]} 20. Rab1 {[%emt 0:00:13]} Rcd8 {[%emt 0:05:12]} 21. Rfc1 {[%emt 0:00:23]} R8d5 {[%emt 0:06:37]} 22. e4 {[%emt 0:02:22]} R5d4 {[%emt 0:00:44]} 23. f3 {[%emt 0:00:38]} Bf8 {[%emt 0:10:19]} 24. Kf2 {[%emt 0:00:49]} Bh6 {[%emt 0:01:17]} 25. Rc2 {[%emt 0:00:02]} Bd2 {[%emt 0:04:46]} 26. Rd1 {[%emt 0:01:59]} Bb4 {[%emt 0:00:07]} 27. Rxd3 {[%emt 0:00:06]} Rxd3 {[%emt 0:00:07]} 28. Rb2 {[%emt 0:00:10]} Kf8 {[%emt 0:00:53]} 29. Ke2 {[%emt 0:00:03]} Rc3 {[%emt 0:00:47]} 30. Nd2 {[%emt 0:01:40]} Rc1 {[%emt 0:00:38]} 31. Kd3 {[%emt 0:00:33]} Rc3+ {[%emt 0:00:35]} 32. Ke2 {[%emt 0:00:01]} Rc1 {[%emt 0:00:08]} 33. Kd3 {[%emt 0:00:55]} Rc3+ {[%emt 0:00:50]} 34. Ke2 {[%emt 0:00:20]} 1/2-1/2

[Event "NOR-ch Various 2019"]
[Site "Larvik"]
[Date "2019.07.07"]
[Round "2.35"]
[White "Kjoita, Torgeir"]
[Black "Thanke, Bror"]
[Result "0-1"]
[ECO "B47"]
[WhiteElo "2012"]
[BlackElo "2191"]
[Annotator "NA"]
[PlyCount "82"]
[EventDate "2019.07.06"]
[EventType "swiss"]
[EventCountry "NOR"]
[SourceTitle "playchess.com"]
[Source "ChessBase"]
[SourceQuality "1"]
[TimeControl "40/5400+30:1800+30"]

1. e4 {[%emt 0:00:00]} c5 {[%emt 0:02:07]} 2. Nf3 {[%emt 0:00:00]} e6 {[%emt 0:00:08]} 3. d4 {[%emt 0:00:09]} cxd4 {[%emt 0:00:04]} 4. Nxd4 {[%emt 0:00:06]} a6 {[%emt 0:00:05]} 5. Nc3 {[%emt 0:03:19]} Qc7 {[%emt 0:00:30]} 6. g3 {[%emt 0:07:46]} Nc6 {[%emt 0:08:37]} 7. Bg2 {[%emt 0:00:42]} Nf6 {[%emt 0:00:19]} 8. O-O {[%emt 0:05:20]} h5 {[%emt 0:08:02]} 9. Nf3 {[%emt 0:21:42]} d6 {[%emt 0:04:48]} 10. Re1 {[%emt 0:15:26]} Be7 {[%emt 0:02:14]} 11. Qe2 {[%emt 0:03:47]} Ng4 {[%emt 0:08:55]} 12. h3 {[%emt 0:04:25]} Nge5 {[%emt 0:00:46]} 13. Nxe5 {[%emt 0:00:27]} dxe5 {[%emt 0:00:50]} 14. Be3 {[%emt 0:02:33]} Nd4 {[%emt 0:09:25]} 15. Qd3 {[%emt 0:01:02]} h4 {[%emt 0:15:15]} 16. Ne2 {[%emt 0:10:09]} Qxc2 {[%emt 0:04:21]} 17. Rad1 {[%emt 0:02:05]} Qxd3 {[%emt 0:00:40]} 18. Rxd3 {[%emt 0:00:05]} Nc2 {[%emt 0:04:09]} 19. Rc1 {[%emt 0:03:37]} Nxe3 {[%emt 0:00:56]} 20. Rxe3 {[%emt 0:00:03]} Bd7 {[%emt 0:01:15]} 21. a3 {[%emt 0:01:12]} hxg3 {[%emt 0:02:45]} 22. Rxg3 {[%emt 0:00:05]} g6 {[%emt 0:00:16]} 23. Rgc3 {[%emt 0:00:47]} Bc6 {[%emt 0:00:54]} 24. Rd1 {[%emt 0:01:36]} O-O {[%emt 0:01:36]} 25. Nc1 {[%emt 0:00:26]} Rac8 {[%emt 0:02:54]} 26. Nd3 {[%emt 0:00:36]} Rfd8 {[%emt 0:01:30]} 27. Rdc1 {[%emt 0:00:38]} f6 {[%emt 0:01:08]} 28. Nc5 {[%emt 0:00:48]} Bxc5 {[%emt 0:00:20]} 29. Rxc5 {[%emt 0:00:04]} Rd2 {[%emt 0:02:08]} 30. R5c2 {[%emt 0:02:33]} Rcd8 {[%emt 0:00:28]} 31. Kf1 {[%emt 0:00:39]} R8d4 {[%emt 0:06:28]} 32. f3 {[%emt 0:05:18]} Kf7 {[%emt 0:04:16]} 33. Ke1 {[%emt 0:00:35]} Rxc2 {[%emt 0:00:09]} 34. Rxc2 {[%emt 0:00:03]} f5 {[%emt 0:00:27]} 35. Rd2 {[%emt 0:03:13]} Kf6 {[%emt 0:01:40]} 36. Ke2 {[%emt 0:05:49]} Kg5 {[%emt 0:02:39]} 37. Ke3 {[%emt 0:00:46]} Rxd2 {[%emt 0:01:26]} 38. Kxd2 {[%emt 0:00:01]} Kf4 {[%emt 0:00:25]} 39. Ke2 {[%emt 0:00:16]} Kg3 {[%emt 0:00:33]} 40. Kf1 {[%emt 0:00:27]} Bb5+ {[%emt 0:01:01]} 41. Kg1 {[%emt 0:30:05]} b6 {[%emt 0:30:58]} 0-1

[Event "NOR-ch Various 2019"]
[Site "Larvik"]
[Date "2019.07.07"]
[Round "2.36"]
[White "Martinsen, Stig K"]
[Black "Sorgjerd, Jan"]
[Result "1/2-1/2"]
[ECO "A65"]
[WhiteElo "2177"]
[BlackElo "2033"]
[Annotator "NA"]
[PlyCount "133"]
[EventDate "2019.07.06"]
[EventType "swiss"]
[EventCountry "NOR"]
[SourceTitle "playchess.com"]
[Source "ChessBase"]
[SourceQuality "1"]
[TimeControl "40/5400+30:1800+30"]

1. d4 {[%emt 0:05:07]} Nf6 {[%emt 0:00:00]} 2. c4 {[%emt 0:01:58]} e6 {[%emt 0:00:31]} 3. Nc3 {[%emt 0:00:10]} c5 {[%emt 0:03:08]} 4. d5 {[%emt 0:00:10]} exd5 {[%emt 0:00:06]} 5. cxd5 {[%emt 0:00:09]} d6 {[%emt 0:00:05]} 6. e4 {[%emt 0:03:47]} g6 {[%emt 0:00:13]} 7. f3 {[%emt 0:00:07]} Bg7 {[%emt 0:00:31]} 8. Bg5 {[%emt 0:00:09]} h6 {[%emt 0:04:24]} 9. Be3 {[%emt 0:01:49]} Na6 {[%emt 0:12:46]} 10. Nge2 {[%emt 0:18:59]} Nc7 {[%emt 0:05:23]} 11. Ng3 {[%emt 0:05:27]} O-O {[%emt 0:09:40]} 12. Qd2 {[%emt 0:05:34]} Kh7 {[%emt 0:10:55]} 13. Rb1 {[%emt 0:07:03]} Re8 {[%emt 0:17:19]} 14. Be2 {[%emt 0:02:47]} b6 {[%emt 0:01:36]} 15. O-O {[%emt 0:01:41]} Ba6 {[%emt 0:02:53]} 16. a3 {[%emt 0:05:56]} Bxe2 {[%emt 0:01:32]} 17. Ngxe2 {[%emt 0:00:32]} Qe7 {[%emt 0:02:42]} 18. b4 {[%emt 0:01:05]} Rab8 {[%emt 0:02:27]} 19. Bf2 {[%emt 0:06:35]} Qd7 {[%emt 0:01:58]} 20. Qd3 {[%emt 0:04:23]} a6 {[%emt 0:03:59]} 21. a4 {[%emt 0:07:25]} Rec8 {[%emt 0:04:43]} 22. Rfc1 {[%emt 0:03:59]} a5 {[%emt 0:02:48]} 23. b5 {[%emt 0:02:32]} Qe7 {[%emt 0:00:45]} 24. Re1 {[%emt 0:11:10]} Nd7 {[%emt 0:00:39]} 25. f4 {[%emt 0:00:50]} Ne8 {[%emt 0:00:43]} 26. Qc2 {[%emt 0:02:31]} Qf8 {[%emt 0:01:06]} 27. Nd1 {[%emt 0:00:40]} Nef6 {[%emt 0:00:27]} 28. h3 {[%emt 0:00:47]} Re8 {[%emt 0:00:13]} 29. Nec3 {[%emt 0:00:17]} Rbc8 {[%emt 0:01:13]} 30. Nb2 {[%emt 0:00:36]} Nh5 {[%emt 0:00:18]} 31. g3 {[%emt 0:00:27]} Bd4 {[%emt 0:00:06]} 32. Kg2 {[%emt 0:00:42]} Qg7 {[%emt 0:00:16]} 33. Rbc1 {[%emt 0:00:18]} Bxf2 {[%emt 0:02:09]} 34. Qxf2 {[%emt 0:00:28]} Qd4 {[%emt 0:00:14]} 35. Red1 {[%emt 0:00:43]} Qb4 {[%emt 0:04:33]} 36. Nd3 {[%emt 0:00:20]} Qc4 {[%emt 0:00:16]} 37. Nb2 {[%emt 0:00:03]} Qb4 {[%emt 0:00:04]} 38. Rc2 {[%emt 0:00:57]} Nhf6 {[%emt 0:00:52]} 39. Nd3 {[%emt 0:00:42]} Nxe4 {[%emt 0:03:33]} 40. Qf3 {[%emt 0:00:33]} Qc4 {[%emt 0:02:16]} 41. Nxe4 {[%emt 0:05:18]} Qxc2+ {[%emt 0:05:24]} 42. Rd2 {[%emt 0:00:56]} Qxa4 {[%emt 0:00:11]} 43. Nxd6 {[%emt 0:00:39]} Rb8 {[%emt 0:04:49]} 44. Nxe8 {[%emt 0:01:19]} Rxe8 {[%emt 0:00:06]} 45. Ne5 {[%emt 0:03:30]} Qxb5 {[%emt 0:05:22]} 46. Nxf7 {[%emt 0:03:20]} Qb4 {[%emt 0:01:08]} 47. Rf2 {[%emt 0:10:57]} Qe4 {[%emt 0:02:07]} 48. Nd6 {[%emt 0:00:57]} Qxf3+ {[%emt 0:00:24]} 49. Kxf3 {[%emt 0:00:05]} Re1 {[%emt 0:01:37]} 50. Rb2 {[%emt 0:01:50]} Rd1 {[%emt 0:02:52]} 51. Nc4 {[%emt 0:01:35]} a4 {[%emt 0:05:13]} 52. d6 {[%emt 0:05:22]} a3 {[%emt 0:04:17]} 53. Ra2 {[%emt 0:00:22]} Rd3+ {[%emt 0:01:40]} 54. Kf2 {[%emt 0:00:44]} Rd4 {[%emt 0:00:16]} 55. Rxa3 {[%emt 0:00:22]} Rxc4 {[%emt 0:01:42]} 56. Ra7 {[%emt 0:00:07]} Rd4 {[%emt 0:00:10]} 57. Rxd7+ {[%emt 0:00:10]} Kg8 {[%emt 0:00:06]} 58. Rd8+ {[%emt 0:01:26]} Kf7 {[%emt 0:00:11]} 59. d7 {[%emt 0:00:26]} c4 {[%emt 0:01:39]} 60. Rc8 {[%emt 0:00:30]} Rxd7 {[%emt 0:00:08]} 61. Rxc4 {[%emt 0:00:10]} b5 {[%emt 0:00:38]} 62. Rc5 {[%emt 0:00:33]} Rb7 63. Ke3 {[%emt 0:00:07]} b4 {[%emt 0:00:03]} 64. Kd2 b3 {[%emt 0:00:01]} 65. Kc1 {[%emt 0:00:01]} b2+ {[%emt 0:00:01]} 66. Kb1 Rb3 67. Kc2 {[%emt 0:00:11]} 1/2-1/2

[Event "NOR-ch Various 2019"]
[Site "Larvik"]
[Date "2019.07.07"]
[Round "2.37"]
[White "Esbensen, Arnt"]
[Black "Kvam, Audun"]
[Result "1/2-1/2"]
[ECO "D09"]
[WhiteElo "2153"]
[BlackElo "2017"]
[Annotator "NA"]
[PlyCount "111"]
[EventDate "2019.07.06"]
[EventType "swiss"]
[EventCountry "NOR"]
[SourceTitle "playchess.com"]
[Source "ChessBase"]
[SourceQuality "1"]
[TimeControl "40/5400+30:1800+30"]

1. d4 {[%emt 0:00:00]} d5 {[%emt 0:03:14]} 2. c4 {[%emt 0:00:00]} e5 {[%emt 0:00:19]} 3. dxe5 {[%emt 0:00:18]} d4 {[%emt 0:00:06]} 4. Nf3 {[%emt 0:00:20]} Nc6 {[%emt 0:00:17]} 5. g3 {[%emt 0:00:22]} Nge7 {[%emt 0:00:22]} 6. Bg2 {[%emt 0:00:31]} Ng6 {[%emt 0:00:30]} 7. Bg5 {[%emt 0:02:41]} Qd7 {[%emt 0:00:58]} 8. O-O {[%emt 0:04:28]} h6 {[%emt 0:04:09]} 9. Bc1 {[%emt 0:01:41]} Ngxe5 {[%emt 0:00:45]} 10. Nbd2 {[%emt 0:00:34]} Be7 {[%emt 0:13:00]} 11. a3 {[%emt 0:04:49]} a5 {[%emt 0:05:18]} 12. Qa4 {[%emt 0:01:08]} O-O {[%emt 0:05:05]} 13. b4 {[%emt 0:05:39]} d3 {[%emt 0:16:41]} 14. exd3 {[%emt 0:21:34]} Qxd3 {[%emt 0:09:04]} 15. b5 {[%emt 0:03:10]} Nxf3+ {[%emt 0:12:47]} 16. Nxf3 {[%emt 0:03:12]} Nd8 {[%emt 0:00:22]} 17. Rd1 {[%emt 0:04:37]} Qg6 {[%emt 0:01:56]} 18. Nd4 {[%emt 0:03:48]} Bc5 {[%emt 0:09:38]} 19. Bb2 {[%emt 0:02:53]} Bf5 {[%emt 0:07:08]} 20. Nxf5 {[%emt 0:02:18]} Qxf5 {[%emt 0:00:05]} 21. Rd2 {[%emt 0:00:24]} Ne6 {[%emt 0:01:34]} 22. Qc2 {[%emt 0:04:24]} Qxc2 {[%emt 0:01:22]} 23. Rxc2 {[%emt 0:00:06]} Rab8 {[%emt 0:02:04]} 24. Rd1 {[%emt 0:01:06]} b6 {[%emt 0:01:12]} 25. Bd5 {[%emt 0:01:16]} Rbd8 {[%emt 0:00:51]} 26. Rcd2 {[%emt 0:00:46]} Bd6 {[%emt 0:02:27]} 27. Bxe6 {[%emt 0:01:05]} fxe6 {[%emt 0:00:06]} 28. Be5 {[%emt 0:00:42]} Be7 {[%emt 0:01:38]} 29. Rd7 {[%emt 0:06:35]} Rxd7 {[%emt 0:00:55]} 30. Rxd7 {[%emt 0:00:07]} Bf6 {[%emt 0:00:30]} 31. Bxf6 {[%emt 0:01:56]} Rxf6 {[%emt 0:00:08]} 32. Rxc7 {[%emt 0:00:08]} Rf3 {[%emt 0:00:10]} 33. Rc6 {[%emt 0:00:26]} Rxa3 {[%emt 0:00:28]} 34. Rxb6 {[%emt 0:00:50]} Rc3 {[%emt 0:00:27]} 35. Rc6 {[%emt 0:01:40]} a4 {[%emt 0:00:31]} 36. b6 {[%emt 0:00:39]} Rb3 {[%emt 0:00:05]} 37. c5 {[%emt 0:00:17]} a3 {[%emt 0:00:15]} 38. Rc8+ {[%emt 0:00:09]} Kf7 {[%emt 0:00:55]} 39. Ra8 {[%emt 0:00:38]} Ke7 {[%emt 0:01:16]} 40. Ra7+ {[%emt 0:02:09]} Kd8 {[%emt 0:00:41]} 41. Kg2 {[%emt 0:34:22]} Rb5 {[%emt 0:02:07]} 42. Rxa3 {[%emt 0:00:00]} Rxc5 {[%emt 0:00:06]} 43. Rb3 {[%emt 0:00:00]} Kc8 {[%emt 0:00:21]} 44. b7+ {[%emt 0:00:00]} Kb8 {[%emt 0:00:07]} 45. Kf3 {[%emt 0:00:00]} Rf5+ {[%emt 0:04:57]} 46. Ke3 {[%emt 0:00:00]} Re5+ {[%emt 0:02:06]} 47. Kd3 {[%emt 0:00:00]} Rd5+ {[%emt 0:00:47]} 48. Ke4 {[%emt 0:00:00]} Rd2 {[%emt 0:00:37]} 49. Rf3 {[%emt 0:00:00]} Re2+ {[%emt 0:07:16]} 50. Kd4 {[%emt 0:00:00]} Kxb7 {[%emt 0:01:25]} 51. Rf7+ {[%emt 0:00:00]} Kc6 {[%emt 0:00:18]} 52. Rxg7 {[%emt 0:00:00]} Rxf2 {[%emt 0:00:47]} 53. h4 {[%emt 0:00:00]} Kd6 {[%emt 0:01:03]} 54. Rg6 {[%emt 0:00:00]} h5 {[%emt 0:00:26]} 55. Ke4 {[%emt 0:00:00]} Rf5 {[%emt 0:03:25]} 56. g4 {[%emt 0:00:11] Ke5+} 1/2-1/2